bitfinex/quotes_BTCUSD_20240717
["timestamp","ask_amount","ask_price","bid_price","bid_amount"]
[1721183359780,0.151756,65895.0,65894.0,0.04923868]
[1721183359987,0.45513774,65895.0,65894.0,0.04923868]
[1721183360350,0.45513774,65895.0,65893.0,0.151761]
[1721183360351,0.30338174,65895.0,65893.0,0.151761]
[1721183360968,0.30438174,65895.0,65893.0,0.151761]
[1721183361192,0.30338174,65895.0,65893.0,0.151761]
[1721183361677,0.30438174,65895.0,65893.0,0.151761]
[1721183362857,0.30438174,65895.0,65891.0,0.151764]
[1721183363076,0.30438174,65895.0,65892.0,0.151763]
[1721183363441,0.30438174,65895.0,65893.0,0.0071141]
[1721183363665,0.30838174,65895.0,65893.0,0.0071141]
[1721183363868,0.30738174,65895.0,65893.0,0.0071141]
[1721183364240,0.30838174,65895.0,65893.0,0.0071141]
[1721183364489,0.30738174,65895.0,65893.0,0.0071141]
[1721183364874,0.30838174,65895.0,65893.0,0.0071141]
[1721183365096,0.31238174,65895.0,65893.0,0.0071141]
[1721183365313,0.24658174,65895.0,65894.0,0.151758]
[1721183365455,0.23858174,65895.0,65894.0,0.151758]
[1721183365651,0.23858174,65895.0,65894.0,0.15887052]
[1721183365985,0.24258174,65895.0,65894.0,0.15887052]
[1721183366191,0.15538174,65895.0,65894.0,0.00711252]
[1721183366524,0.15538174,65895.0,65893.0,0.15176]
[1721183366661,0.15938174,65895.0,65894.0,0.00711252]
[1721183367100,0.15838174,65895.0,65894.0,0.00711252]
[1721183367538,0.15938174,65895.0,65894.0,0.00711252]
[1721183371348,0.61465074,65895.0,65894.0,0.00711252]
[1721183371552,0.151776,65887.0,65881.0,0.20115589]
[1721183371760,0.151772,65888.0,65881.0,0.35294289]
[1721183371932,0.30615374,65888.0,65883.0,0.151782]
[1721183372145,0.30615774,65887.0,65882.0,0.151786]
[1721183372353,0.30615774,65887.0,65883.0,0.151783]
[1721183372587,0.15438174,65887.0,65883.0,0.151783]
[1721183372791,0.16138174,65887.0,65882.0,0.30357]
[1721183373180,0.16538174,65887.0,65883.0,0.151783]
[1721183373397,0.16538174,65887.0,65884.0,0.151781]
[1721183373606,0.16138174,65887.0,65881.0,0.001]
[1721183373856,0.16538174,65887.0,65885.0,0.151777]
[1721183374190,0.011,65887.0,65886.0,0.151777]
[1721183374338,0.011,65887.0,65886.0,0.215577]
[1721183374339,0.004,65887.0,65886.0,0.215577]
[1721183374538,0.004,65887.0,65886.0,0.822685]
[1721183374752,0.303504,65897.0,65887.0,0.303549]
[1721183374951,0.30614174,65894.0,65889.0,0.151769]
[1721183375726,0.45790374,65894.0,65886.0,0.304554]
[1721183375926,0.45790374,65894.0,65886.0,0.303554]
[1721183376134,0.30614174,65894.0,65889.0,0.151768]
[1721183376970,0.31014174,65894.0,65889.0,0.151768]
[1721183377422,0.455304,65890.0,65889.0,0.001]
[1721183377624,0.91322174,65890.0,65889.0,0.002]
[1721183378162,1.36005774,65890.0,65889.0,0.002]
[1721183378330,1.36005774,65890.0,65889.0,0.001]
[1721183378534,1.36005774,65890.0,65889.0,0.002]
[1721183378535,1.37005774,65890.0,65889.0,0.002]
[1721183379507,1.44305774,65890.0,65889.0,0.001]
[1721183379763,1.39705774,65890.0,65889.0,0.002]
[1721183380319,1.91049374,65890.0,65889.0,0.002]
[1721183380844,2.01049374,65890.0,65889.0,0.002]
[1721183381445,1.96049374,65890.0,65889.0,0.002]
[1721183381847,1.95049374,65890.0,65889.0,0.001]
[1721183382354,0.902277,65878.0,65877.0,0.000924]
[1721183382651,1.05665874,65878.0,65877.0,0.000924]
[1721183382855,1.84674074,65878.0,65877.0,0.000924]
[1721183383089,1.84674074,65878.0,65877.0,0.00084894]
[1721183383844,1.91074074,65878.0,65877.0,0.00084894]
[1721183384404,1.91074074,65878.0,65877.0,0.00184894]
[1721183384541,1.86074074,65878.0,65877.0,0.00184894]
[1721183384752,1.92474074,65878.0,65877.0,0.00184894]
[1721183385355,1.91074074,65878.0,65877.0,0.00084894]
[1721183385911,1.56914974,65878.0,65877.0,0.00184894]
[1721183386204,1.40924974,65878.0,65877.0,0.00184894]
[1721183386728,1.08265874,65878.0,65877.0,0.00184894]
[1721183388804,0.026,65878.0,65877.0,0.90263894]
[1721183389205,0.026,65878.0,65877.0,0.9098207]
[1721183390042,0.303521,65894.0,65881.0,0.303575]
[1721183390393,0.021,65878.0,65877.0,0.6072247]
[1721183390608,0.021,65878.0,65877.0,1.33327317]
[1721183391367,0.007,65878.0,65877.0,1.33227317]
[1721183391815,0.004,65878.0,65877.0,1.33127317]
[1721183392015,0.005,65878.0,65877.0,1.33127317]
[1721183392212,0.004,65878.0,65877.0,1.33127324]
[1721183392960,0.004,65878.0,65877.0,1.33327324]
[1721183393116,0.004,65878.0,65877.0,1.33127324]
[1721183393318,0.004,65878.0,65877.0,1.33527324]
[1721183393685,0.001,65878.0,65877.0,1.33527324]
[1721183393823,0.15438174,65893.0,65889.0,0.151769]
[1721183394658,0.15438174,65893.0,65890.0,0.151767]
[1721183395035,0.16838174,65893.0,65890.0,0.151767]
[1721183396321,0.16538174,65893.0,65890.0,0.152767]
[1721183396519,0.17838174,65893.0,65890.0,0.153767]
[1721183396729,0.215665,65891.0,65890.0,0.002]
[1721183396935,0.75587774,65891.0,65890.0,0.002]
[1721183397165,1.05940874,65891.0,65890.0,0.002]
[1721183397435,1.05940874,65891.0,65890.0,0.001]
[1721183397819,1.05940874,65891.0,65890.0,0.002]
[1721183398502,1.05940874,65891.0,65890.0,0.001]
[1721183398921,1.06740874,65891.0,65890.0,0.002]
[1721183399321,1.06740874,65891.0,65890.0,0.001]
[1721183399693,1.07840874,65891.0,65890.0,0.002]
[1721183400276,1.12840874,65891.0,65890.0,0.002]
[1721183400507,1.07840874,65891.0,65890.0,0.002]
[1721183402598,0.77487774,65891.0,65890.0,0.002]
[1721183402821,0.71097774,65891.0,65890.0,0.002]
[1721183403427,0.62867774,65891.0,65890.0,0.002]
[1721183403675,0.17338174,65891.0,65890.0,0.0664]
[1721183403876,0.019,65891.0,65890.0,0.59887879]
[1721183404077,0.019,65891.0,65890.0,0.521704]
[1721183405037,0.011,65891.0,65890.0,0.520704]
[1721183405488,0.303481,65902.0,65896.0,0.151754]
[1721183405687,0.33424817,65901.0,65894.0,0.303515]
[1721183405859,0.02812243,65900.0,65896.0,0.151753]
[1721183406071,0.30612974,65899.0,65894.0,0.151757]
[1721183406280,0.02812243,65898.0,65894.0,0.151757]
[1721183406597,0.15438174,65897.0,65896.0,0.001]
[1721183406936,0.18250417,65897.0,65896.0,0.001]
[1721183407076,0.18250417,65897.0,65894.0,0.151757]
[1721183407284,0.15438174,65897.0,65894.0,0.151757]
[1721183407489,0.15438174,65897.0,65894.0,0.152757]
[1721183407490,0.02816753,65896.0,65894.0,0.152757]
[1721183407690,0.15438174,65895.0,65894.0,0.152757]
[1721183407916,0.18254927,65895.0,65894.0,0.153757]
[1721183408069,0.18254927,65895.0,65894.0,0.152757]
[1721183408458,0.18254927,65895.0,65894.0,0.001]
[1721183408653,0.18254927,65895.0,65894.0,0.002]
[1721183408985,0.19154927,65895.0,65894.0,0.003]
[1721183409506,0.19154927,65895.0,65894.0,0.002]
[1721183409507,1.01473127,65895.0,65894.0,0.002]
[1721183410117,1.01473127,65895.0,65894.0,0.003]
[1721183410497,1.01468457,65895.0,65894.0,0.002]
[1721183410694,1.01468464,65895.0,65894.0,0.002]
[1721183410917,1.01468464,65895.0,65894.0,0.003]
[1721183411121,1.02868464,65895.0,65894.0,0.003]
[1721183413680,1.00056374,65895.0,65894.0,0.003]
[1721183413883,1.02868021,65895.0,65894.0,0.003]
[1721183416969,1.02863155,65895.0,65894.0,0.003]
[1721183417438,0.96423155,65895.0,65894.0,0.003]
[1721183417868,0.20544955,65895.0,65894.0,0.003]
[1721183418081,0.20544955,65895.0,65894.0,0.1444]
[1721183419656,0.20544955,65895.0,65894.0,0.296158]
[1721183420081,0.20550602,65895.0,65894.0,0.42217924]
[1721183420672,0.19150602,65895.0,65894.0,0.295158]
[1721183421080,0.19150602,65895.0,65894.0,0.42117849]
[1721183421234,0.19150602,65895.0,65894.0,1.02821249]
[1721183421235,0.03712428,65895.0,65894.0,1.02821249]
[1721183421443,0.03712428,65895.0,65894.0,1.33172949]
[1721183421846,0.02812428,65895.0,65894.0,1.32972949]
[1721183422107,0.0280127,65906.0,65903.0,0.0637]
[1721183422280,0.18239458,65905.0,65903.0,0.0637]
[1721183422480,0.02801284,65904.0,65903.0,0.0637]
[1721183422678,0.18239458,65904.0,65903.0,0.596814]
[1721183423085,0.02796956,65904.0,65903.0,0.445076]
[1721183423308,0.00084,65917.0,65911.0,0.151718]
[1721183423309,0.20047344,65917.0,65911.0,0.151718]
[1721183423508,0.20047344,65917.0,65903.0,0.445076]
[1721183423509,0.5443254,65916.0,65907.0,0.303455]
[1721183423685,0.08652566,65915.0,65907.0,0.303455]
[1721183423888,0.2409074,65914.0,65910.0,0.151721]
[1721183424235,0.08652566,65913.0,65909.0,0.151723]
[1721183424363,0.08652566,65912.0,65909.0,0.151723]
[1721183424560,0.02796859,65911.0,65909.0,0.151723]
[1721183424804,0.02796859,65910.0,65909.0,0.151723]
[1721183425010,0.15438174,65910.0,65903.0,0.447076]
[1721183425207,0.151735,65904.0,65903.0,0.001]
[1721183425385,0.71755633,65904.0,65903.0,0.001]
[1721183425721,1.44603887,65904.0,65903.0,0.001]
[1721183425876,0.151759,65894.0,65892.0,0.7]
[1721183426062,0.02796859,65893.0,65891.0,0.0663]
[1721183426264,0.02794744,65892.0,65889.0,0.151769]
[1721183426466,0.33409518,65891.0,65886.0,0.214377]
[1721183426693,0.02794744,65890.0,65887.0,0.27780076]
[1721183426896,0.15438174,65889.0,65887.0,0.151774]
[1721183427091,0.02797982,65888.0,65887.0,0.151774]
[1721183427290,0.02797982,65888.0,65887.0,0.12602729]
[1721183427499,0.18236156,65888.0,65886.0,0.0626]
[1721183427699,0.151793,65879.0,65877.0,0.00084894]
[1721183427908,0.63778638,65879.0,65878.0,0.1759104]
[1721183428113,0.63778638,65879.0,65877.0,0.00084894]
[1721183428114,0.455386,65878.0,65877.0,0.00084894]
[1721183428315,0.63779338,65878.0,65877.0,0.00084894]
[1721183428540,1.24497538,65878.0,65877.0,0.00084894]
[1721183428896,1.30355575,65878.0,65877.0,0.00084894]
[1721183429350,1.30372777,65878.0,65877.0,0.00084894]
[1721183429487,1.2451474,65878.0,65877.0,0.00084894]
[1721183429690,1.57645879,65878.0,65877.0,0.00084894]
[1721183430026,1.64145879,65878.0,65877.0,0.00184894]
[1721183430346,1.68655511,65878.0,65877.0,0.00184894]
[1721183430549,1.64145879,65878.0,65877.0,0.00184894]
[1721183430931,1.65545879,65878.0,65877.0,0.00284894]
[1721183431334,2.05414611,65878.0,65877.0,0.00284894]
[1721183431559,2.26339936,65878.0,65877.0,0.00284894]
[1721183431762,2.35359201,65878.0,65877.0,0.00284894]
[1721183432134,2.42203419,65878.0,65877.0,0.00284894]
[1721183432353,2.516327,65878.0,65877.0,0.00084894]
[1721183432594,2.40852265,65878.0,65877.0,0.00084894]
[1721183432815,2.43652265,65878.0,65877.0,0.00084894]
[1721183433077,2.72611741,65878.0,65877.0,0.00084894]
[1721183433308,2.59087222,65878.0,65877.0,0.00084894]
[1721183433752,2.72610398,65878.0,65877.0,0.00084894]
[1721183433973,2.59087222,65878.0,65877.0,0.00084894]
[1721183434204,2.67605101,65878.0,65877.0,0.00084894]
[1721183434431,0.82202,65857.0,65851.0,0.04949745]
[1721183434656,1.00469501,65857.0,65851.0,0.04949745]
[1721183434870,1.00475471,65857.0,65844.0,0.46397271]
[1721183435096,1.30844271,65857.0,65844.0,0.46397271]
[1721183435794,1.25767598,65857.0,65844.0,0.61584471]
[1721183436008,1.25767598,65857.0,65844.0,0.46397271]
[1721183436224,1.24567598,65857.0,65844.0,0.304671]
[1721183436440,1.25967598,65857.0,65845.0,0.151871]
[1721183436662,1.27267598,65857.0,65844.0,0.304671]
[1721183436856,1.27267598,65857.0,65844.0,0.000924]
[1721183437581,1.29567598,65857.0,65844.0,0.000924]
[1721183438275,2.41120155,65857.0,65844.0,0.000924]
[1721183438500,2.51120155,65857.0,65844.0,0.000924]
[1721183438735,2.48281531,65857.0,65844.0,0.000924]
[1721183438938,2.56979313,65857.0,65844.0,0.000924]
[1721183439142,2.4972054,65857.0,65844.0,0.000924]
[1721183439692,2.4612054,65857.0,65844.0,0.000924]
[1721183439895,2.4982054,65857.0,65844.0,0.000924]
[1721183440093,2.48425883,65857.0,65844.0,0.000924]
[1721183440256,1.720743,65845.0,65844.0,0.000924]
[1721183440455,2.11622474,65845.0,65844.0,0.000924]
[1721183440875,2.14466963,65845.0,65844.0,0.000924]
[1721183441084,2.24466963,65845.0,65844.0,0.000924]
[1721183441281,1.89092663,65845.0,65844.0,0.000924]
[1721183441482,0.60999574,65845.0,65844.0,0.000924]
[1721183441941,1.21748174,65845.0,65844.0,0.000924]
[1721183442311,0.91373874,65845.0,65844.0,0.000924]
[1721183442517,0.92773874,65845.0,65844.0,0.000924]
[1721183443018,0.94173874,65845.0,65844.0,0.000924]
[1721183443540,0.63799574,65845.0,65844.0,0.000924]
[1721183443742,0.33425274,65845.0,65844.0,0.000924]
[1721183444099,0.94173874,65845.0,65844.0,0.000924]
[1721183444495,0.63799574,65845.0,65844.0,0.000924]
[1721183445067,0.60999574,65845.0,65844.0,0.000924]
[1721183445475,0.63799574,65845.0,65844.0,0.000924]
[1721183445690,0.18238174,65845.0,65844.0,0.000924]
[1721183445890,0.18238174,65845.0,65844.0,0.082924]
[1721183447607,0.028,65845.0,65844.0,0.234798]
[1721183447850,0.028,65845.0,65844.0,0.907594]
[1721183448044,0.028,65845.0,65844.0,0.603846]
[1721183448246,0.028,65845.0,65844.0,0.300098]
[1721183448630,0.15186,65851.0,65844.0,0.451972]
[1721183448841,0.15438174,65850.0,65846.0,0.151867]
[1721183449039,0.15438174,65850.0,65847.0,0.151867]
[1721183449668,0.15438174,65850.0,65847.0,0.151865]
[1721183449868,0.303697,65855.0,65847.0,0.151865]
[1721183449869,0.151847,65856.0,65847.0,0.303734]
[1721183450070,0.00277097,65858.0,65847.0,0.303734]
[1721183450071,0.15438174,65855.0,65849.0,0.151861]
[1721183450275,0.151851,65854.0,65849.0,0.151861]
[1721183450503,0.15438174,65853.0,65849.0,0.151861]
[1721183450667,0.151855,65852.0,65847.0,0.151865]
[1721183450880,0.151861,65850.0,65845.0,0.15187]
[1721183451253,0.15438174,65849.0,65844.0,0.148224]
[1721183452252,0.30373,65848.0,65844.0,0.148224]
[1721183452432,0.15438174,65847.0,65844.0,0.148224]
[1721183453432,0.15187,65846.0,65844.0,0.148224]
[1721183453617,0.30373,65848.0,65844.0,0.148224]
[1721183453618,0.30625274,65845.0,65844.0,0.148224]
[1721183455531,0.30625274,65845.0,65844.0,0.066224]
[1721183455686,0.31225274,65845.0,65844.0,0.066224]
[1721183456702,0.32225274,65845.0,65844.0,0.000924]
[1721183457127,0.62599574,65845.0,65844.0,0.000924]
[1721183457328,0.65429748,65845.0,65844.0,0.000924]
[1721183457731,0.62599574,65845.0,65844.0,0.000924]
[1721183458366,0.62599574,65845.0,65844.0,0.12704667]
[1721183458565,0.32225274,65845.0,65844.0,0.12704667]
[1721183458827,0.17038174,65845.0,65844.0,0.12704667]
[1721183459317,0.17038174,65845.0,65844.0,0.27892067]
[1721183459491,0.17038174,65845.0,65844.0,0.65796867]
[1721183459701,0.17038174,65845.0,65844.0,0.72116867]
[1721183460116,0.17038174,65845.0,65844.0,0.41742067]
[1721183460478,0.17038174,65845.0,65844.0,0.72116867]
[1721183460684,0.016,65845.0,65844.0,0.72116252]
[1721183460926,0.016,65845.0,65844.0,1.02491052]
[1721183461901,0.016,65845.0,65844.0,1.32865852]
[1721183462504,0.016,65845.0,65844.0,1.53606551]
[1721183462726,0.016,65845.0,65844.0,1.51781949]
[1721183462900,0.006,65845.0,65844.0,1.53606341]
[1721183463118,0.151839,65859.0,65854.0,0.151849]
[1721183463320,0.151839,65859.0,65853.0,0.303706]
[1721183463321,0.15715271,65858.0,65855.0,0.27795486]
[1721183463531,0.15715271,65858.0,65856.0,0.12610686]
[1721183463868,0.00277097,65858.0,65857.0,0.42175086]
[1721183464072,0.303643,65867.0,65858.0,0.15184]
[1721183464279,0.455511,65860.0,65859.0,0.12610686]
[1721183464485,0.151843,65858.0,65853.0,0.0814]
[1721183464655,0.30622574,65857.0,65854.0,0.12610324]
[1721183464860,0.00277097,65856.0,65855.0,0.12610324]
[1721183465056,0.15438174,65856.0,65855.0,0.12610324]
[1721183465217,0.91361174,65856.0,65855.0,0.12610324]
[1721183465434,0.151849,65855.0,65848.0,0.303729]
[1721183465649,0.15438174,65854.0,65850.0,0.151859]
[1721183465867,0.15438174,65854.0,65851.0,0.27796843]
[1721183466078,0.15438174,65854.0,65852.0,0.12611243]
[1721183466283,0.15438174,65854.0,65850.0,0.151858]
[1721183466489,0.15438174,65854.0,65851.0,0.12610676]
[1721183466684,0.15438174,65854.0,65853.0,0.001]
[1721183467002,0.15438174,65854.0,65853.0,0.12610676]
[1721183467208,0.30623274,65854.0,65853.0,0.12610676]
[1721183467842,0.32023274,65854.0,65853.0,0.13321548]
[1721183468432,0.62393474,65854.0,65853.0,0.13321548]
[1721183468634,0.62393474,65854.0,65853.0,0.12710676]
[1721183468831,0.62393474,65854.0,65853.0,0.001]
[1721183469110,0.63493474,65854.0,65853.0,0.001]
[1721183469516,0.455559,65853.0,65852.0,0.001]
[1721183469644,0.455559,65853.0,65847.0,0.0638]
[1721183469645,0.151858,65851.0,65847.0,0.0638]
[1721183469827,0.30623974,65851.0,65848.0,0.12611277]
[1721183470027,0.30623974,65851.0,65849.0,0.12611277]
[1721183470232,0.30623974,65851.0,65850.0,0.12611277]
[1721183470958,0.15938174,65851.0,65850.0,0.12611277]
[1721183471199,0.011,65853.0,65851.0,0.0809]
[1721183471402,0.011,65853.0,65852.0,0.12611277]
[1721183471806,0.011,65853.0,65852.0,0.27796777]
[1721183472012,0.011,65853.0,65852.0,0.12611277]
[1721183472394,0.011,65853.0,65852.0,0.27796777]
[1721183472771,0.303664,65863.0,65853.0,0.303706]
[1721183472953,0.151835,65861.0,65855.0,0.303696]
[1721183473370,0.15715271,65860.0,65856.0,0.1260973]
[1721183473546,0.15438174,65861.0,65860.0,0.151837]
[1721183473718,0.303638,65868.0,65860.0,0.1875973]
[1721183473924,0.30897371,65867.0,65863.0,0.151829]
[1721183474085,0.30897371,65867.0,65864.0,0.12608664]
[1721183474282,0.15715271,65867.0,65865.0,0.12608664]
[1721183474527,0.30897371,65867.0,65866.0,0.12608664]
[1721183474794,0.30620274,65867.0,65866.0,0.12608664]
[1721183475860,0.151824,65866.0,65861.0,0.231032]
[1721183476069,0.15438174,65865.0,65864.0,0.001]
[1721183476272,0.15438174,65865.0,65864.0,0.12708575]
[1721183476637,0.15438174,65865.0,65864.0,0.12608575]
[1721183477252,0.16538174,65865.0,65864.0,0.12708575]
[1721183477451,0.31720674,65865.0,65864.0,0.12708575]
[1721183477837,0.33120674,65865.0,65864.0,0.12808575]
[1721183478039,0.17938174,65865.0,65864.0,0.12808575]
[1721183478235,0.33120674,65865.0,65864.0,0.002]
[1721183478497,0.33120674,65865.0,65864.0,0.00807961]
[1721183478899,0.93850874,65865.0,65864.0,0.00807961]
[1721183479213,0.93850874,65865.0,65864.0,0.002]
[1721183479343,0.63485774,65865.0,65864.0,0.002]
[1721183479746,0.93850874,65865.0,65864.0,0.002]
[1721183480189,0.63485774,65865.0,65864.0,0.002]
[1721183480396,0.17938174,65865.0,65864.0,0.082]
[1721183480768,0.17938174,65865.0,65864.0,0.30009728]
[1721183480978,0.17938174,65865.0,65864.0,0.14826928]
[1721183481592,0.17938174,65865.0,65864.0,0.30009728]
[1721183481995,0.025,65865.0,65864.0,1.21006528]
[1721183482354,0.014,65865.0,65864.0,1.33514179]
[1721183482566,0.00084,65867.0,65866.0,0.759115]
[1721183482734,0.00084,65867.0,65866.0,0.88519151]
[1721183482934,0.00084,65867.0,65866.0,0.89125802]
[1721183483257,0.00084,65867.0,65866.0,0.76518151]
[1721183484235,0.00084,65867.0,65866.0,1.06882751]
[1721183484655,0.00084,65867.0,65866.0,0.76518151]
[1721183485423,0.00084,65867.0,65866.0,0.76718151]
[1721183485675,0.00084,65867.0,65866.0,0.76518151]
[1721183485879,0.00284,65867.0,65866.0,0.76518151]
[1721183486143,0.00284,65867.0,65866.0,0.76618151]
[1721183486341,0.00284,65867.0,65866.0,0.76518151]
[1721183486459,0.00084,65867.0,65866.0,0.76518151]
[1721183486862,0.00484,65867.0,65866.0,0.76518151]
[1721183492811,0.156661,65867.0,65866.0,0.00606651]
[1721183493038,0.61468474,65867.0,65866.0,0.00606651]
[1721183493161,0.61468474,65867.0,65856.0,0.000924]
[1721183493162,0.151844,65857.0,65856.0,0.000924]
[1721183493360,0.151844,65857.0,65856.0,0.700924]
[1721183493834,0.151844,65857.0,65856.0,0.70661796]
[1721183494037,0.151844,65857.0,65856.0,0.00661796]
[1721183495638,0.163844,65857.0,65856.0,0.00661796]
[1721183496243,0.76575774,65857.0,65856.0,0.00661796]
[1721183496442,1.22128974,65857.0,65856.0,0.00661796]
[1721183496642,1.22128974,65857.0,65856.0,0.000924]
[1721183496643,1.22828974,65857.0,65856.0,0.000924]
[1721183499557,0.92460174,65857.0,65856.0,0.000924]
[1721183500620,1.16195421,65857.0,65856.0,0.000924]
[1721183500751,1.46564221,65857.0,65856.0,0.000924]
[1721183501125,1.51082388,65857.0,65856.0,0.000924]
[1721183501370,1.4229505,65857.0,65856.0,0.000924]
[1721183501573,1.51087247,65857.0,65856.0,0.000924]
[1721183502056,1.49987247,65857.0,65856.0,0.000924]
[1721183502349,1.52587247,65857.0,65856.0,0.001924]
[1721183504309,1.4379505,65857.0,65856.0,0.001924]
[1721183504669,1.52580402,65857.0,65856.0,0.001924]
[1721183505233,1.48060203,65857.0,65856.0,0.001924]
[1721183505442,1.4379505,65857.0,65856.0,0.001924]
[1721183505871,1.52581157,65857.0,65856.0,0.001924]
[1721183506094,0.151869,65847.0,65843.0,0.04710536]
[1721183506296,0.30625074,65847.0,65843.0,0.04710536]
[1721183506504,0.30625074,65847.0,65843.0,0.151876]
[1721183506957,0.00277097,65851.0,65847.0,0.0657]
[1721183507286,0.15438174,65850.0,65847.0,0.0657]
[1721183508168,0.00277097,65849.0,65847.0,0.0657]
[1721183508570,0.00277097,65849.0,65848.0,0.00585611]
[1721183508779,0.15438174,65850.0,65848.0,0.00585611]
[1721183508986,0.00277097,65849.0,65848.0,0.00585611]
[1721183510394,0.61473971,65849.0,65848.0,0.00585611]
[1721183510591,0.61196874,65849.0,65848.0,0.00585611]
[1721183510771,0.61196874,65849.0,65843.0,0.218275]
[1721183510772,0.151868,65847.0,65843.0,0.218275]
[1721183510969,0.15464097,65846.0,65842.0,0.151877]
[1721183511174,0.15464097,65846.0,65844.0,0.00586034]
[1721183511175,0.00277097,65845.0,65844.0,0.00586034]
[1721183511370,0.00277097,65845.0,65843.0,0.00586167]
[1721183511630,0.00277097,65845.0,65842.0,0.151877]
[1721183511833,0.00277097,65845.0,65844.0,0.00586028]
[1721183511985,0.15187,65846.0,65843.0,0.00686167]
[1721183512193,0.00277097,65845.0,65844.0,0.00586028]
[1721183512429,0.15187,65846.0,65844.0,0.00586028]
[1721183512986,0.00277097,65845.0,65844.0,0.00586028]
[1721183513198,0.61276671,65845.0,65844.0,0.00586028]
[1721183513408,0.91373874,65845.0,65844.0,0.00586028]
[1721183513575,0.591322,65844.0,65843.0,0.000924]
[1721183513795,1.51309974,65844.0,65843.0,0.000924]
[1721183514004,2.14419731,65844.0,65843.0,0.000924]
[1721183514137,2.31332065,65844.0,65843.0,0.000924]
[1721183514347,2.18156645,65844.0,65843.0,0.000924]
[1721183514566,2.13156645,65844.0,65843.0,0.000924]
[1721183514978,2.04118499,65844.0,65843.0,0.000924]
[1721183515176,2.09118499,65844.0,65843.0,0.000924]
[1721183515530,2.04118499,65844.0,65843.0,0.000924]
[1721183515728,2.10891551,65844.0,65843.0,0.000924]
[1721183516004,2.04127264,65844.0,65843.0,0.000924]
[1721183516241,1.99656677,65844.0,65843.0,0.000924]
[1721183516444,1.88182191,65844.0,65843.0,0.000924]
[1721183516617,1.95456176,65844.0,65843.0,0.000924]
[1721183516821,2.12846176,65844.0,65843.0,0.000924]
[1721183517018,2.10046176,65844.0,65843.0,0.000924]
[1721183517230,2.0864244,65844.0,65843.0,0.000924]
[1721183517398,2.01054619,65844.0,65843.0,0.000924]
[1721183517600,1.96784774,65844.0,65843.0,0.000924]
[1721183517918,1.99385487,65844.0,65843.0,0.000924]
[1721183518318,2.03655719,65844.0,65843.0,0.000924]
[1721183518530,2.24090676,65844.0,65843.0,0.000924]
[1721183518789,2.29964229,65844.0,65843.0,0.000924]
[1721183519355,2.24090676,65844.0,65843.0,0.000924]
[1721183519559,2.08655719,65844.0,65843.0,0.000924]
[1721183521662,2.03655719,65844.0,65843.0,0.000924]
[1721183522305,2.08655719,65844.0,65843.0,0.000924]
[1721183522705,2.01784774,65844.0,65843.0,0.000924]
[1721183522858,2.08648922,65844.0,65843.0,0.000924]
[1721183523056,2.24083879,65844.0,65843.0,0.000924]
[1721183523309,2.29958429,65844.0,65843.0,0.000924]
[1721183524090,2.24958429,65844.0,65843.0,0.000924]
[1721183524311,2.29958429,65844.0,65843.0,0.000924]
[1721183524567,2.30899974,65844.0,65843.0,0.000924]
[1721183526175,2.30914004,65844.0,65843.0,0.000924]
[1721183526422,2.30913995,65844.0,65843.0,0.000924]
[1721183526601,2.29972449,65844.0,65843.0,0.000924]
[1721183527107,2.29973224,65844.0,65843.0,0.000924]
[1721183528585,2.14538267,65844.0,65843.0,0.000924]
[1721183528971,2.07238267,65844.0,65843.0,0.000924]
[1721183530004,2.12238267,65844.0,65843.0,0.000924]
[1721183530369,2.14538267,65844.0,65843.0,0.000924]
[1721183530575,2.44913067,65844.0,65843.0,0.000924]
[1721183530771,2.45854701,65844.0,65843.0,0.000924]
[1721183530999,2.30914858,65844.0,65843.0,0.000924]
[1721183531247,2.29973224,65844.0,65843.0,0.000924]
[1721183532312,2.23094281,65844.0,65843.0,0.000924]
[1721183534873,2.2403603,65844.0,65843.0,0.000924]
[1721183535074,2.5441083,65844.0,65843.0,0.000924]
[1721183535289,2.53469081,65844.0,65843.0,0.000924]
[1721183536609,2.54410753,65844.0,65843.0,0.000924]
[1721183537206,2.24035953,65844.0,65843.0,0.000924]
[1721183537412,2.02659324,65844.0,65843.0,0.000924]
[1721183537592,1.89089324,65844.0,65843.0,0.000924]
[1721183540054,1.94089324,65844.0,65843.0,0.000924]
[1721183542144,1.95030063,65844.0,65843.0,0.000924]
[1721183542593,1.526932,65836.0,65835.0,0.009185]
[1721183542862,2.16306663,65836.0,65835.0,0.009185]
[1721183543015,2.23606587,65836.0,65835.0,0.009185]
[1721183543192,2.28606587,65836.0,65835.0,0.009185]
[1721183543596,2.28606587,65836.0,65822.0,0.04994435]
[1721183543597,0.759612,65823.0,65822.0,0.04994435]
[1721183543801,1.80949055,65823.0,65822.0,0.04994435]
[1721183543994,0.615688,65820.0,65811.0,0.009185]
[1721183544188,0.83822155,65820.0,65811.0,0.009185]
[1721183544382,0.96122155,65820.0,65811.0,0.009185]
[1721183544577,1.56893955,65820.0,65811.0,0.009185]
[1721183545231,1.87279824,65820.0,65811.0,0.009185]
[1721183545753,1.88679824,65820.0,65811.0,0.009185]
[1721183546309,1.87279824,65820.0,65811.0,0.009185]
[1721183546528,2.07714781,65820.0,65811.0,0.009185]
[1721183546730,2.09114781,65820.0,65811.0,0.009185]
[1721183547135,2.10514781,65820.0,65811.0,0.009185]
[1721183547336,2.10515163,65820.0,65811.0,0.009185]
[1721183549400,2.09574181,65820.0,65819.0,0.009207]
[1721183551026,1.94139224,65820.0,65819.0,0.009207]
[1721183551231,1.42763324,65820.0,65819.0,0.009207]
[1721183553296,1.42763324,65820.0,65819.0,0.155107]
[1721183553297,1.10077424,65820.0,65819.0,0.155107]
[1721183553475,1.40463324,65820.0,65819.0,0.009207]
[1721183554729,1.42763324,65820.0,65819.0,0.009207]
[1721183556431,2.03995362,65820.0,65819.0,0.009207]
[1721183556679,2.24044181,65820.0,65819.0,0.009207]
[1721183556786,2.19044181,65820.0,65819.0,0.009207]
[1721183556994,2.24044181,65820.0,65819.0,0.009207]
[1721183557412,2.28553903,65820.0,65819.0,0.009207]
[1721183557640,2.29494791,65820.0,65819.0,0.009207]
[1721183557839,2.24494791,65820.0,65819.0,0.009207]
[1721183558045,2.19985069,65820.0,65819.0,0.009207]
[1721183558278,2.24985069,65820.0,65819.0,0.009207]